[Event "FIDE WCCC G10 2018"]
[Site "Santiago de Compostela"]
[Date "2018.11.12"]
[Round "8"]
[White "Ciarletta, Iris"]
[Black "Chekhani, Anna"]
[Result "0-1"]
[ECO "B24"]
[WhiteElo "1381"]
[BlackElo "1288"]
[Annotator "NA RC"]
[PlyCount "98"]
[EventDate "2018.11.04"]
[EventType "swiss"]
[EventCountry "ESP"]
[SourceTitle "playchess.com"]
[Source "ChessBase"]
[SourceQuality "1"]
[TimeControl "40/5400+30:1800+30"]

1. e4 {[%emt 0:00:00]} c5 {[%emt 0:00:00]} 2. Nc3 {[%emt 0:01:53]} Nc6 {[%emt 0:00:36]} 3. Bb5 {[%emt 0:00:40]} Nd4 {[%emt 0:21:12]} 4. Nf3 {[%emt 0:04:01]} a6 {[%emt 0:00:39]} 5. Bc4 {[%emt 0:02:21]} e6 {[%emt 0:02:40]} 6. d3 {[%emt 0:02:43]} b5 {[%emt 0:05:48]} 7. Bb3 {[%emt 0:00:39]} Be7 {[%emt 0:07:24]} 8. O-O {[%emt 0:04:44]} d6 {[%emt 0:02:55]} 9. Nxd4 {[%emt 0:01:28]} cxd4 {[%emt 0:00:05]} 10. Ne2 {[%emt 0:00:30]} Qb6 {[%emt 0:01:48]} 11. Ng3 {[%emt 0:01:58]} Nf6 {[%emt 0:07:10]} 12. Kh1 {[%emt 0:04:11]} O-O {[%emt 0:01:32]} 13. Bg5 {[%emt 0:01:54]} h6 {[%emt 0:01:42]} 14. Bxf6 {[%emt 0:00:51]} Bxf6 {[%emt 0:00:09]} 15. f4 {[%emt 0:01:41]} Bd7 {[%emt 0:08:03]} 16. Qg4 {[%emt 0:02:48]} Qd8 {[%emt 0:07:00]} 17. Rae1 {[%emt 0:05:38]} Kh8 {[%emt 0:16:15]} 18. Nh5 {[%emt 0:00:56]} g6 {[%emt 0:02:04]} 19. Nxf6 {[%emt 0:00:50]} Qxf6 {[%emt 0:00:05]} 20. e5 {[%emt 0:01:01]} Qg7 {[%emt 0:03:47]} 21. Qf3 {[%emt 0:05:36]} a5 {[%emt 0:03:24]} 22. a3 {[%emt 0:01:38]} a4 {[%emt 0:00:07]} 23. Ba2 {[%emt 0:00:33]} Rac8 {[%emt 0:00:13]} 24. Rc1 {[%emt 0:01:29]} dxe5 {[%emt 0:00:57]} 25. fxe5 {[%emt 0:01:16]} Qxe5 {[%emt 0:00:11]} 26. Rfe1 {[%emt 0:01:04]} Rxc2 {[%emt 0:02:35]} 27. Qf1 {[%emt 0:02:15]} Rxc1 {[%emt 0:00:23]} 28. Rxc1 {[%emt 0:00:25]} Rc8 {[%emt 0:00:50]} 29. Rxc8+ {[%emt 0:01:06]} Bxc8 {[%emt 0:00:03]} 30. h3 {[%emt 0:00:48]} Kg7 {[%emt 0:00:17]} 31. Qf2 {[%emt 0:02:43]} Bb7 {[%emt 0:00:56]} 32. Bb1 {[%emt 0:02:51]} Bd5 {[%emt 0:01:11]} 33. Bc2 {[%emt 0:00:52]} Qe3 {[%emt 0:02:00]} 34. Qxe3 {[%emt 0:01:10]} dxe3 {[%emt 0:00:06]} 35. Bd1 {[%emt 0:00:16]} Kf6 {[%emt 0:00:08]} 36. Kg1 {[%emt 0:00:54]} Ke5 {[%emt 0:00:08]} 37. g3 {[%emt 0:00:46]} Kd4 {[%emt 0:00:06]} 38. Kf1 {[%emt 0:00:42]} Bb3 {[%emt 0:01:03]} 39. Bxb3 {[%emt 0:01:42]} axb3 {[%emt 0:00:04]} 40. Ke2 {[%emt 0:00:00]} f5 {[%emt 0:00:00]} 41. h4 {[%emt 0:01:22]} h5 {[%emt 0:00:20]} 42. g4 {[%emt 0:00:38]} fxg4 {[%emt 0:00:07]} 43. a4 {[%emt 0:00:35]} bxa4 {[%emt 0:00:06]} 44. Ke1 {[%emt 0:00:26]} Kxd3 {[%emt 0:00:06]} 45. Kd1 {[%emt 0:00:12]} e2+ {[%emt 0:00:11]} 46. Ke1 {[%emt 0:00:10]} a3 {[%emt 0:00:39]} 47. Kf2 {[%emt 0:00:17]} Kd2 {[%emt 0:00:06]} 48. Kg3 {[%emt 0:00:05]} e1=Q+ {[%emt 0:00:13]} 49. Kf4 {[%emt 0:00:30]} Qe3# 0-1

[Event "FIDE WCCC G10 2018"]
[Site "Santiago de Compostela"]
[Date "2018.11.12"]
[Round "8"]
[White "Vu, My Linh"]
[Black "Rasheva, Nora"]
[Result "1-0"]
[ECO "A49"]
[WhiteElo "1349"]
[BlackElo "1495"]
[Annotator "NA RC"]
[PlyCount "73"]
[EventDate "2018.11.04"]
[EventType "swiss"]
[EventCountry "ESP"]
[SourceTitle "playchess.com"]
[Source "ChessBase"]
[SourceQuality "1"]
[TimeControl "40/5400+30:1800+30"]

1. d4 {[%emt 0:00:00]} Nf6 {[%emt 0:00:00]} 2. Nf3 {[%emt 0:00:00]} g6 {[%emt 0:00:00]} 3. g3 {[%emt 0:00:00]} Bg7 {[%emt 0:00:13]} 4. Bg2 {[%emt 0:00:06]} d5 {[%emt 0:00:31]} 5. O-O {[%emt 0:00:21]} O-O {[%emt 0:00:09]} 6. c4 {[%emt 0:00:12]} Nc6 {[%emt 0:01:52]} 7. Nc3 {[%emt 0:00:24]} dxc4 {[%emt 0:20:57]} 8. e4 {[%emt 0:04:16]} Bg4 {[%emt 0:00:51]} 9. Be3 {[%emt 0:00:56]} Qd7 {[%emt 0:19:53]} 10. Qd2 {[%emt 0:07:39]} Bxf3 {[%emt 0:04:15]} 11. Bxf3 {[%emt 0:00:10]} Ng4 {[%emt 0:00:51]} 12. Qe2 {[%emt 0:04:09]} Nxe3 {[%emt 0:00:47]} 13. fxe3 {[%emt 0:00:10]} Bh6 {[%emt 0:04:33]} 14. Kh1 {[%emt 0:03:24]} Nb4 {[%emt 0:10:51]} 15. b3 {[%emt 0:04:59]} cxb3 {[%emt 0:00:56]} 16. axb3 {[%emt 0:00:07]} a5 {[%emt 0:05:27]} 17. Rac1 {[%emt 0:02:02]} Rad8 {[%emt 0:05:54]} 18. Bg4 {[%emt 0:00:46]} Qe8 {[%emt 0:01:15]} 19. Nb5 {[%emt 0:00:33]} Na6 {[%emt 0:00:30]} 20. Nxc7 {[%emt 0:02:15]} Nxc7 {[%emt 0:00:08]} 21. Rxc7 {[%emt 0:00:09]} e6 {[%emt 0:02:19]} 22. e5 {[%emt 0:01:46]} Rd7 {[%emt 0:00:31]} 23. Rfc1 {[%emt 0:00:32]} Qe7 {[%emt 0:00:43]} 24. R7c5 {[%emt 0:02:01]} b6 {[%emt 0:00:43]} 25. R5c3 {[%emt 0:01:38]} Qb4 {[%emt 0:02:06]} 26. Bf3 {[%emt 0:03:24]} Rdd8 {[%emt 0:01:29]} 27. h4 {[%emt 0:01:07]} f6 {[%emt 0:04:33]} 28. Bg4 {[%emt 0:03:33]} f5 {[%emt 0:00:38]} 29. Bf3 {[%emt 0:00:18]} Qe7 {[%emt 0:00:20]} 30. Rc6 {[%emt 0:01:04]} g5 {[%emt 0:00:58]} 31. Qc4 {[%emt 0:02:07]} Kh8 {[%emt 0:02:06]} 32. Qxe6 {[%emt 0:01:49]} Qxe6 {[%emt 0:00:17]} 33. Rxe6 {[%emt 0:00:05]} g4 {[%emt 0:01:30]} 34. Rxh6 {[%emt 0:00:12]} gxf3 {[%emt 0:00:04]} 35. Rc7 {[%emt 0:00:07]} Rc8 {[%emt 0:00:29]} 36. Rhxh7+ {[%emt 0:00:07]} Kg8 {[%emt 0:00:07]} 37. Rcg7# {[%emt 0:00:06]} 1-0

[Event "FIDE WCCC G10 2018"]
[Site "Santiago de Compostela"]
[Date "2018.11.12"]
[Round "8"]
[White "Zavivaeva, Evelina"]
[Black "Anupam M Sreekumar"]
[Result "0-1"]
[ECO "C54"]
[WhiteElo "1323"]
[BlackElo "1615"]
[Annotator "NA RC"]
[PlyCount "130"]
[EventDate "2018.11.04"]
[EventType "swiss"]
[EventCountry "ESP"]
[SourceTitle "playchess.com"]
[Source "ChessBase"]
[SourceQuality "1"]
[TimeControl "40/5400+30:1800+30"]

1. e4 {[%emt 0:00:00]} e5 {[%emt 0:00:31]} 2. Nf3 {[%emt 0:02:06]} Nc6 {[%emt 0:00:18]} 3. Bc4 {[%emt 0:00:17]} Bc5 {[%emt 0:00:21]} 4. c3 {[%emt 0:00:09]} Nf6 {[%emt 0:00:25]} 5. O-O {[%emt 0:00:56]} Nxe4 {[%emt 0:12:51]} 6. d4 {[%emt 0:00:56]} exd4 {[%emt 0:07:56]} 7. cxd4 {[%emt 0:00:46]} d5 {[%emt 0:01:36]} 8. dxc5 {[%emt 0:00:31]} dxc4 {[%emt 0:00:30]} 9. Qe2 {[%emt 0:00:59]} Qd3 {[%emt 0:01:21]} 10. Re1 {[%emt 0:00:21]} f5 {[%emt 0:01:28]} 11. Qxd3 {[%emt 0:19:25]} cxd3 {[%emt 0:00:14]} 12. a3 {[%emt 0:22:58]} O-O {[%emt 0:02:42]} 13. b4 {[%emt 0:07:17]} Be6 {[%emt 0:03:51]} 14. Bb2 {[%emt 0:06:54]} Bc4 {[%emt 0:01:32]} 15. Nbd2 {[%emt 0:03:01]} Nxd2 {[%emt 0:04:48]} 16. Nxd2 {[%emt 0:00:51]} Bf7 {[%emt 0:01:22]} 17. Nf3 {[%emt 0:14:57]} Rad8 {[%emt 0:03:57]} 18. Bc3 {[%emt 0:06:57]} Bh5 {[%emt 0:04:16]} 19. b5 {[%emt 0:06:29]} Bxf3 {[%emt 0:03:02]} 20. gxf3 {[%emt 0:00:20]} Nd4 {[%emt 0:00:44]} 21. Bxd4 {[%emt 0:00:52]} Rxd4 {[%emt 0:03:18]} 22. Red1 {[%emt 0:00:34]} Re8 {[%emt 0:00:58]} 23. Rd2 {[%emt 0:01:27]} Re5 {[%emt 0:01:51]} 24. Rc1 {[%emt 0:01:39]} h6 {[%emt 0:00:59]} 25. Rc3 {[%emt 0:00:50]} Red5 {[%emt 0:01:14]} 26. Kg2 {[%emt 0:00:54]} Kf7 {[%emt 0:00:38]} 27. Kg3 {[%emt 0:00:28]} Kg6 {[%emt 0:00:47]} 28. a4 {[%emt 0:00:33]} Rxa4 {[%emt 0:02:57]} 29. Rdxd3 {[%emt 0:00:18]} Rxd3 {[%emt 0:00:31]} 30. Rxd3 {[%emt 0:00:05]} Rc4 {[%emt 0:00:12]} 31. Rd5 {[%emt 0:00:34]} a6 {[%emt 0:01:08]} 32. bxa6 {[%emt 0:00:31]} bxa6 {[%emt 0:00:07]} 33. Re5 {[%emt 0:00:56]} Kf6 {[%emt 0:00:25]} 34. Rd5 {[%emt 0:00:37]} Ke6 {[%emt 0:00:18]} 35. Rd8 {[%emt 0:00:29]} Rxc5 {[%emt 0:00:08]} 36. Rg8 {[%emt 0:00:18]} Kf7 {[%emt 0:00:33]} 37. Ra8 {[%emt 0:00:23]} a5 {[%emt 0:00:05]} 38. Ra6 {[%emt 0:00:25]} c6 {[%emt 0:02:58]} 39. Kf4 {[%emt 0:00:56]} Kf6 {[%emt 0:05:13]} 40. Ke3 {[%emt 0:00:00]} Rc3+ {[%emt 0:00:00]} 41. Ke2 {[%emt 0:04:52]} Rc5 {[%emt 0:01:54]} 42. Ke3 {[%emt 0:01:22]} g5 {[%emt 0:03:36]} 43. f4 {[%emt 0:05:41]} gxf4+ {[%emt 0:02:57]} 44. Kxf4 {[%emt 0:00:23]} h5 {[%emt 0:04:30]} 45. f3 {[%emt 0:08:04]} Kg6 {[%emt 0:02:39]} 46. Ke3 {[%emt 0:08:30]} Kg5 {[%emt 0:02:07]} 47. h3 {[%emt 0:02:41]} Rc3+ {[%emt 0:05:04]} 48. Ke2 {[%emt 0:01:50]} Rc5 {[%emt 0:02:03]} 49. Ke3 {[%emt 0:00:29]} Kh4 {[%emt 0:00:59]} 50. Kd4 {[%emt 0:00:51]} Rd5+ {[%emt 0:00:43]} 51. Ke3 {[%emt 0:01:15]} Kxh3 {[%emt 0:03:06]} 52. Rxc6 {[%emt 0:00:20]} h4 {[%emt 0:00:12]} 53. Rh6 {[%emt 0:00:41]} Kg3 {[%emt 0:01:27]} 54. f4 {[%emt 0:00:31]} h3 {[%emt 0:01:18]} 55. Rg6+ {[%emt 0:00:25]} Kh2 {[%emt 0:00:21]} 56. Kf2 {[%emt 0:00:33]} Kh1 {[%emt 0:02:01]} 57. Rg1+ {[%emt 0:00:15]} Kh2 {[%emt 0:00:08]} 58. Rg5 {[%emt 0:00:31]} a4 {[%emt 0:00:42]} 59. Rg6 {[%emt 0:00:42]} a3 {[%emt 0:00:22]} 60. Ra6 {[%emt 0:00:25]} Rd2+ {[%emt 0:01:45]} 61. Kf3 {[%emt 0:00:38]} Ra2 {[%emt 0:01:06]} 62. Ra7 {[%emt 0:00:31]} Ra1 {[%emt 0:00:15]} 63. Kf2 {[%emt 0:00:29]} a2 {[%emt 0:00:12]} 64. Ra3 {[%emt 0:00:31]} Rg1 {[%emt 0:00:14]} 65. Rxa2 Rg2+ {[%emt 0:00:08]} 0-1

[Event "FIDE WCCC G10 2018"]
[Site "Santiago de Compostela"]
[Date "2018.11.12"]
[Round "8"]
[White "Kurmanalina, Deniza"]
[Black "Keerthana Easwar"]
[Result "1-0"]
[ECO "C24"]
[WhiteElo "1320"]
[BlackElo "1410"]
[Annotator "NA RC"]
[PlyCount "57"]
[EventDate "2018.11.04"]
[EventType "swiss"]
[EventCountry "ESP"]
[SourceTitle "playchess.com"]
[Source "ChessBase"]
[SourceQuality "1"]
[TimeControl "40/5400+30:1800+30"]

1. e4 {[%emt 0:00:00]} e5 {[%emt 0:00:13]} 2. Bc4 {[%emt 0:00:00]} Nf6 {[%emt 0:00:25]} 3. d3 {[%emt 0:00:00]} c6 {[%emt 0:00:31]} 4. Nf3 {[%emt 0:00:00]} Be7 {[%emt 0:00:36]} 5. O-O {[%emt 0:01:48]} d6 {[%emt 0:00:36]} 6. Nc3 {[%emt 0:04:27]} Nbd7 {[%emt 0:02:52]} 7. Kh1 {[%emt 0:02:06]} O-O {[%emt 0:05:36]} 8. a3 {[%emt 0:06:10]} h6 {[%emt 0:01:06]} 9. Bb3 {[%emt 0:02:22]} Re8 {[%emt 0:02:53]} 10. Ng1 {[%emt 0:04:48]} Nc5 {[%emt 0:06:06]} 11. f4 {[%emt 0:01:05]} Nxb3 {[%emt 0:02:29]} 12. cxb3 {[%emt 0:00:13]} exf4 {[%emt 0:00:26]} 13. Bxf4 {[%emt 0:00:47]} Bg4 {[%emt 0:08:33]} 14. Qd2 {[%emt 0:01:45]} Qb6 {[%emt 0:03:41]} 15. b4 {[%emt 0:01:09]} Rad8 {[%emt 0:08:20]} 16. Rae1 {[%emt 0:01:05]} Nd7 {[%emt 0:02:40]} 17. Re3 {[%emt 0:01:31]} Bh5 {[%emt 0:04:20]} 18. Rh3 {[%emt 0:02:19]} Nf6 {[%emt 0:01:59]} 19. Be3 {[%emt 0:00:49]} Qa6 {[%emt 0:01:56]} 20. Rxf6 {[%emt 0:04:16]} Bxf6 {[%emt 0:02:04]} 21. Rxh5 {[%emt 0:00:07]} Re6 {[%emt 0:01:35]} 22. Ra5 {[%emt 0:00:35]} Qxa5 {[%emt 0:01:18]} 23. bxa5 {[%emt 0:00:06]} a6 {[%emt 0:00:21]} 24. Nf3 {[%emt 0:00:28]} Bxc3 {[%emt 0:00:13]} 25. Qxc3 {[%emt 0:00:15]} c5 {[%emt 0:00:39]} 26. Qb3 {[%emt 0:00:40]} Rd7 {[%emt 0:02:19]} 27. Qd5 {[%emt 0:00:39]} Rde7 {[%emt 0:00:30]} 28. h3 {[%emt 0:00:57]} Rf6 {[%emt 0:01:00]} 29. Bxc5 {[%emt 0:01:33]} 1-0

[Event "FIDE WCCC G10 2018"]
[Site "Santiago de Compostela"]
[Date "2018.11.12"]
[Round "8"]
[White "Long, Aoxue"]
[Black "Cereijo Suarez, Nerea"]
[Result "0-1"]
[ECO "D30"]
[WhiteElo "1267"]
[BlackElo "1368"]
[Annotator "NA RC"]
[PlyCount "120"]
[EventDate "2018.11.04"]
[EventType "swiss"]
[EventCountry "ESP"]
[SourceTitle "playchess.com"]
[Source "ChessBase"]
[SourceQuality "1"]
[TimeControl "40/5400+30:1800+30"]

1. d4 {[%emt 0:00:00]} d5 {[%emt 0:00:00]} 2. c4 {[%emt 0:00:00]} e6 {[%emt 0:00:07]} 3. cxd5 {[%emt 0:00:00]} exd5 {[%emt 0:00:34]} 4. Nc3 {[%emt 0:00:00]} c6 {[%emt 0:01:48]} 5. Qc2 {[%emt 0:00:03]} f5 {[%emt 0:06:10]} 6. Bf4 {[%emt 0:03:09]} Nf6 {[%emt 0:02:27]} 7. f3 {[%emt 0:03:26]} Bd6 {[%emt 0:05:18]} 8. Bg5 {[%emt 0:04:08]} h6 {[%emt 0:04:22]} 9. Bh4 {[%emt 0:00:18]} O-O {[%emt 0:01:29]} 10. O-O-O {[%emt 0:08:04]} b5 {[%emt 0:17:56]} 11. e3 {[%emt 0:03:50]} Re8 {[%emt 0:06:16]} 12. Bf2 {[%emt 0:01:35]} a5 {[%emt 0:04:42]} 13. Bd3 {[%emt 0:01:47]} f4 {[%emt 0:01:33]} 14. e4 {[%emt 0:06:37]} dxe4 {[%emt 0:04:15]} 15. fxe4 {[%emt 0:00:19]} Ng4 {[%emt 0:04:59]} 16. e5 {[%emt 0:01:33]} Be7 {[%emt 0:03:36]} 17. d5 {[%emt 0:14:11]} b4 {[%emt 0:16:36]} 18. dxc6 {[%emt 0:04:38]} Qc7 {[%emt 0:00:35]} 19. Nd5 {[%emt 0:16:06]} Qxc6 {[%emt 0:00:43]} 20. Nxe7+ {[%emt 0:04:33]} Rxe7 {[%emt 0:00:46]} 21. Bh7+ {[%emt 0:00:18]} Kh8 {[%emt 0:03:38]} 22. Rd8+ {[%emt 0:00:59]} Re8 {[%emt 0:00:10]} 23. Qxc6 {[%emt 0:00:21]} Nxc6 {[%emt 0:00:08]} 24. Rxe8+ {[%emt 0:00:06]} Kxh7 {[%emt 0:00:06]} 25. Nh3 {[%emt 0:06:10]} Ncxe5 {[%emt 0:01:03]} 26. Rd1 {[%emt 0:01:08]} Bb7 {[%emt 0:01:07]} 27. Rxa8 {[%emt 0:03:48]} Bxa8 {[%emt 0:00:03]} 28. Bb6 {[%emt 0:03:01]} g5 {[%emt 0:02:54]} 29. Bxa5 {[%emt 0:01:06]} Bxg2 {[%emt 0:00:16]} 30. Ng1 {[%emt 0:00:24]} f3 {[%emt 0:00:37]} 31. Nxf3 {[%emt 0:05:30]} Bxf3 {[%emt 0:00:13]} 32. Rd4 {[%emt 0:03:15]} b3 {[%emt 0:00:55]} 33. a4 {[%emt 0:01:13]} Nxh2 {[%emt 0:01:06]} 34. Bc7 {[%emt 0:00:28]} Nhg4 {[%emt 0:00:27]} 35. a5 {[%emt 0:00:08]} h5 {[%emt 0:00:30]} 36. Bxe5 {[%emt 0:01:47]} Nxe5 {[%emt 0:00:17]} 37. Kd2 {[%emt 0:00:15]} Kg6 {[%emt 0:01:05]} 38. Ke3 {[%emt 0:00:31]} Kf5 {[%emt 0:00:30]} 39. Rd8 {[%emt 0:00:26]} Kg4 {[%emt 0:02:14]} 40. Kf2 {[%emt 0:00:00]} h4 {[%emt 0:00:00]} 41. Rd4+ {[%emt 0:02:46]} Kh3 {[%emt 0:02:01]} 42. Rd8 {[%emt 0:02:24]} g4 {[%emt 0:01:35]} 43. Rb8 {[%emt 0:03:55]} Kh2 {[%emt 0:01:54]} 44. Rxb3 {[%emt 0:00:11]} g3+ {[%emt 0:00:16]} 45. Ke3 {[%emt 0:00:20]} g2 {[%emt 0:00:24]} 46. a6 {[%emt 0:00:16]} g1=Q+ {[%emt 0:00:18]} 47. Kd2 {[%emt 0:00:30]} Qd1+ {[%emt 0:00:11]} 48. Kc3 {[%emt 0:00:17]} Qd3+ {[%emt 0:00:24]} 49. Kb4 {[%emt 0:00:08]} Nc6+ {[%emt 0:00:24]} 50. Kc5 {[%emt 0:00:22]} Qxb3 {[%emt 0:00:29]} 51. a7 {[%emt 0:00:13]} Qa4 {[%emt 0:00:29]} 52. a8=Q {[%emt 0:00:10]} Qxa8 {[%emt 0:00:22]} 53. Kb6 {[%emt 0:00:09]} Qa7+ {[%emt 0:00:13]} 54. Kb5 {[%emt 0:00:07]} Be2+ {[%emt 0:00:35]} 55. Kxc6 {[%emt 0:00:12]} Bb5+ {[%emt 0:00:16]} 56. Kxb5 {[%emt 0:00:07]} Qb7+ {[%emt 0:00:03]} 57. Kc5 {[%emt 0:00:13]} Qxb2 {[%emt 0:00:08]} 58. Kc4 {[%emt 0:00:05]} Kg3 {[%emt 0:00:08]} 59. Kd3 {[%emt 0:00:09]} Qc1 {[%emt 0:00:10]} 60. Ke2 {[%emt 0:00:06]} Kf4 {[%emt 0:00:20]} 0-1

[Event "FIDE WCCC G10 2018"]
[Site "Santiago de Compostela"]
[Date "2018.11.13"]
[Round "9"]
[White "Kleymenova, Valeria"]
[Black "Kurmanalina, Deniza"]
[Result "1-0"]
[ECO "A46"]
[WhiteElo "1773"]
[BlackElo "1320"]
[Annotator "NA RC"]
[PlyCount "141"]
[EventDate "2018.11.04"]
[EventType "swiss"]
[EventCountry "ESP"]
[SourceTitle "playchess.com"]
[Source "ChessBase"]
[SourceQuality "1"]
[TimeControl "40/5400+30:1800+30"]

1. d4 {[%emt 0:00:00]} Nf6 {[%emt 0:00:00]} 2. Nf3 {[%emt 0:00:00]} c5 {[%emt 0:00:00]} 3. c3 {[%emt 0:00:00]} Qc7 {[%emt 0:19:42]} 4. e3 {[%emt 0:05:28]} g6 {[%emt 0:00:11]} 5. Bd3 {[%emt 0:00:17]} Bg7 {[%emt 0:00:10]} 6. O-O {[%emt 0:00:41]} O-O {[%emt 0:00:10]} 7. e4 {[%emt 0:03:29]} d6 {[%emt 0:01:25]} 8. h3 {[%emt 0:04:01]} Nc6 {[%emt 0:01:34]} 9. Be3 {[%emt 0:02:05]} b6 {[%emt 0:01:56]} 10. Nbd2 {[%emt 0:02:44]} Bb7 {[%emt 0:00:26]} 11. Rc1 {[%emt 0:01:24]} Rac8 {[%emt 0:01:10]} 12. Qe2 {[%emt 0:00:58]} e5 {[%emt 0:02:09]} 13. dxe5 {[%emt 0:01:12]} dxe5 {[%emt 0:02:08]} 14. a4 {[%emt 0:04:46]} Rfd8 {[%emt 0:02:57]} 15. Rfd1 {[%emt 0:03:48]} Qe7 {[%emt 0:02:13]} 16. Nf1 {[%emt 0:06:10]} Rd7 {[%emt 0:08:47]} 17. Bg5 {[%emt 0:02:29]} Rcd8 {[%emt 0:03:52]} 18. Ne3 {[%emt 0:02:56]} Na5 {[%emt 0:04:46]} 19. Ng4 {[%emt 0:05:02]} Nc6 {[%emt 0:07:43]} 20. Bb5 {[%emt 0:12:33]} Rxd1+ {[%emt 0:07:29]} 21. Rxd1 {[%emt 0:00:05]} Rxd1+ {[%emt 0:00:07]} 22. Qxd1 {[%emt 0:00:04]} h5 {[%emt 0:04:34]} 23. Nxf6+ {[%emt 0:15:37]} Bxf6 {[%emt 0:00:32]} 24. Bxf6 {[%emt 0:00:30]} Qxf6 {[%emt 0:00:06]} 25. Qd7 {[%emt 0:00:37]} Nd8 {[%emt 0:01:40]} 26. Bd3 {[%emt 0:03:23]} Kg7 {[%emt 0:06:06]} 27. Qc7 {[%emt 0:01:52]} Bc6 {[%emt 0:07:50]} 28. b3 {[%emt 0:04:22]} Nb7 {[%emt 0:02:55]} 29. Nxe5 {[%emt 0:01:27]} Nd8 {[%emt 0:01:35]} 30. Nf3 {[%emt 0:02:21]} Nb7 {[%emt 0:02:59]} 31. e5 {[%emt 0:05:47]} Qe6 {[%emt 0:01:45]} 32. Bc4 {[%emt 0:00:50]} Qd7 {[%emt 0:01:43]} 33. Qxd7 {[%emt 0:00:22]} Bxd7 {[%emt 0:00:08]} 34. Ng5 {[%emt 0:00:22]} Be8 {[%emt 0:02:27]} 35. Ne4 {[%emt 0:02:49]} Bc6 {[%emt 0:00:35]} 36. Ng5 {[%emt 0:00:56]} Be8 {[%emt 0:00:43]} 37. Bd5 {[%emt 0:00:26]} Nd8 {[%emt 0:00:51]} 38. Ne4 {[%emt 0:00:44]} Nc6 {[%emt 0:00:22]} 39. Nd6 {[%emt 0:00:55]} Bd7 {[%emt 0:00:46]} 40. Bxc6 {[%emt 0:00:00]} Bxc6 {[%emt 0:00:00]} 41. Nc8 {[%emt 0:00:47]} c4 {[%emt 0:06:03]} 42. bxc4 {[%emt 0:00:46]} Bxa4 {[%emt 0:00:07]} 43. Nxa7 {[%emt 0:00:11]} Bb3 {[%emt 0:00:04]} 44. Nc8 {[%emt 0:00:16]} Bxc4 {[%emt 0:00:12]} 45. Nxb6 {[%emt 0:00:01]} Bb5 {[%emt 0:00:21]} 46. c4 {[%emt 0:00:27]} Bc6 {[%emt 0:00:06]} 47. Nd5 {[%emt 0:00:25]} Kf8 {[%emt 0:00:30]} 48. f4 {[%emt 0:00:26]} Ke8 {[%emt 0:00:11]} 49. Kf2 {[%emt 0:00:37]} Kd7 {[%emt 0:00:18]} 50. Nb4 {[%emt 0:00:28]} Bb7 {[%emt 0:00:17]} 51. g3 {[%emt 0:00:39]} Kc7 {[%emt 0:00:17]} 52. Ke3 {[%emt 0:00:34]} Kb6 {[%emt 0:00:13]} 53. Kd4 {[%emt 0:00:11]} Ka5 {[%emt 0:00:13]} 54. Nd3 {[%emt 0:00:24]} Kb6 {[%emt 0:00:11]} 55. Nf2 {[%emt 0:00:23]} Kc6 {[%emt 0:00:18]} 56. Ne4 {[%emt 0:00:06]} Kd7 {[%emt 0:00:22]} 57. h4 {[%emt 0:00:29]} Bc6 {[%emt 0:00:39]} 58. Ng5 {[%emt 0:00:53]} Ke7 {[%emt 0:00:19]} 59. Kc5 {[%emt 0:00:06]} Bd7 {[%emt 0:00:10]} 60. Kd5 {[%emt 0:00:39]} Bc8 {[%emt 0:00:19]} 61. c5 {[%emt 0:00:24]} Bb7+ {[%emt 0:00:38]} 62. c6 {[%emt 0:00:19]} Bc8 {[%emt 0:00:20]} 63. Ne4 {[%emt 0:00:27]} Be6+ {[%emt 0:00:17]} 64. Kc5 {[%emt 0:00:06]} Kd8 {[%emt 0:00:34]} 65. Kd6 {[%emt 0:00:12]} Bc8 {[%emt 0:00:21]} 66. Nf6 {[%emt 0:00:27]} Be6 {[%emt 0:00:15]} 67. c7+ {[%emt 0:00:33]} Kc8 {[%emt 0:00:09]} 68. Ne4 {[%emt 0:00:25]} Kb7 {[%emt 0:00:23]} 69. Nc5+ {[%emt 0:00:07]} Kc8 {[%emt 0:00:11]} 70. Nxe6 {[%emt 0:00:05]} fxe6 {[%emt 0:00:07]} 71. Kxe6 {[%emt 0:00:02]} 1-0

[Event "FIDE WCCC G10 2018"]
[Site "Santiago de Compostela"]
[Date "2018.11.13"]
[Round "9"]
[White "Zakirova, Aisha"]
[Black "Cereijo Suarez, Nerea"]
[Result "1-0"]
[ECO "D31"]
[WhiteElo "1678"]
[BlackElo "1368"]
[Annotator "NA RC"]
[PlyCount "108"]
[EventDate "2018.11.04"]
[EventType "swiss"]
[EventCountry "ESP"]
[SourceTitle "playchess.com"]
[Source "ChessBase"]
[SourceQuality "1"]
[TimeControl "40/5400+30:1800+30"]

1. d4 {[%emt 0:00:00]} d5 {[%emt 0:00:00]} 2. c4 {[%emt 0:00:00]} c6 {[%emt 0:00:18]} 3. Nc3 {[%emt 0:00:00]} e6 {[%emt 0:00:56]} 4. e4 {[%emt 0:01:39]} Nf6 {[%emt 0:03:16]} 5. cxd5 {[%emt 0:02:55]} cxd5 {[%emt 0:02:20]} 6. e5 {[%emt 0:01:49]} Nfd7 {[%emt 0:01:59]} 7. Nf3 {[%emt 0:01:26]} Nc6 {[%emt 0:02:07]} 8. Be3 {[%emt 0:04:57]} Nb6 {[%emt 0:04:41]} 9. Rc1 {[%emt 0:08:37]} Be7 {[%emt 0:03:20]} 10. Be2 {[%emt 0:12:54]} O-O {[%emt 0:02:53]} 11. O-O {[%emt 0:01:38]} h6 {[%emt 0:03:28]} 12. a3 {[%emt 0:07:52]} Na5 {[%emt 0:05:55]} 13. Nd2 {[%emt 0:02:08]} Bd7 {[%emt 0:02:18]} 14. Bd3 {[%emt 0:14:34]} Bg5 {[%emt 0:05:19]} 15. Bxg5 {[%emt 0:14:02]} Qxg5 {[%emt 0:00:26]} 16. b4 {[%emt 0:02:00]} Nac4 {[%emt 0:02:21]} 17. Nxc4 {[%emt 0:01:06]} dxc4 {[%emt 0:01:37]} 18. Be4 {[%emt 0:03:04]} Rab8 {[%emt 0:02:27]} 19. Qf3 {[%emt 0:01:10]} Bc8 {[%emt 0:02:02]} 20. Qe2 {[%emt 0:04:48]} Bd7 {[%emt 0:01:10]} 21. f4 {[%emt 0:00:54]} Qe7 {[%emt 0:00:42]} 22. Qf3 {[%emt 0:01:15]} Bc8 {[%emt 0:05:44]} 23. Nb5 {[%emt 0:02:00]} a6 {[%emt 0:01:28]} 24. Nd6 {[%emt 0:00:34]} Rd8 {[%emt 0:03:10]} 25. Rfd1 {[%emt 0:01:25]} f5 {[%emt 0:01:49]} 26. Bb1 {[%emt 0:00:43]} Qc7 {[%emt 0:04:05]} 27. Ba2 {[%emt 0:00:49]} Bd7 {[%emt 0:01:09]} 28. Bxc4 {[%emt 0:01:28]} Nxc4 {[%emt 0:00:17]} 29. Rxc4 {[%emt 0:00:21]} Bc6 {[%emt 0:00:46]} 30. Qh5 {[%emt 0:00:57]} Rxd6 {[%emt 0:03:34]} 31. exd6 {[%emt 0:00:24]} Qxd6 {[%emt 0:00:06]} 32. Rc3 {[%emt 0:00:50]} Qxf4 {[%emt 0:00:39]} 33. Rg3 {[%emt 0:02:17]} Be8 {[%emt 0:03:18]} 34. Qe2 {[%emt 0:00:48]} Bf7 {[%emt 0:00:35]} 35. Qb2 {[%emt 0:01:25]} g5 {[%emt 0:01:56]} 36. Qc3 {[%emt 0:01:48]} Rd8 {[%emt 0:00:39]} 37. Rf3 {[%emt 0:00:40]} Qe4 {[%emt 0:00:39]} 38. Re3 {[%emt 0:00:51]} Qf4 {[%emt 0:00:37]} 39. Rf3 {[%emt 0:01:11]} Qe4 {[%emt 0:00:20]} 40. Rff1 {[%emt 0:00:00]} b5 {[%emt 0:00:00]} 41. Rfe1 {[%emt 0:03:08]} Qf4 {[%emt 0:02:22]} 42. Qc5 {[%emt 0:02:19]} Qd6 {[%emt 0:00:57]} 43. Qxd6 {[%emt 0:03:57]} Rxd6 {[%emt 0:00:06]} 44. Re5 {[%emt 0:00:30]} Bh5 {[%emt 0:00:53]} 45. Rd2 {[%emt 0:00:31]} Kf7 {[%emt 0:00:34]} 46. Kf2 {[%emt 0:00:34]} Ke7 {[%emt 0:00:19]} 47. Rc5 {[%emt 0:01:11]} Kd7 {[%emt 0:00:14]} 48. g3 {[%emt 0:01:25]} Bf7 {[%emt 0:00:23]} 49. Ke3 {[%emt 0:00:26]} Bg8 {[%emt 0:00:21]} 50. Rdc2 {[%emt 0:00:46]} Ke7 {[%emt 0:00:31]} 51. Rc7+ {[%emt 0:00:27]} Rd7 {[%emt 0:00:05]} 52. R2c6 {[%emt 0:00:52]} Rxc7 {[%emt 0:00:55]} 53. Rxc7+ {[%emt 0:00:08]} Kd6 {[%emt 0:00:02]} 54. Rg7 {[%emt 0:00:10]} Kd5 {Ke4+} 1-0